bitfinex/quotes_SOLUSD_20250118
["timestamp","ask_amount","ask_price","bid_price","bid_amount"]
[1737192636473,6.66855998,238.84,238.72,32.86525672]
[1737192636474,32.83525672,238.8,238.72,32.86525672]
[1737192636783,32.83525672,238.78,238.74,20.0]
[1737192637381,20.20139199,238.78,238.74,20.0]
[1737192637569,20.20139199,238.76,238.72,0.03]
[1737192637776,20.20139199,238.74,238.72,0.03]
[1737192639692,23.776884,238.73,238.72,0.03]
[1737192641572,27.965684,238.73,238.72,0.03]
[1737192642473,31.08685927,238.73,238.72,0.03]
[1737192642789,20.0,238.7,238.68,0.03]
[1737192642972,64.17966798,238.69,238.68,0.03]
[1737192643372,23.776884,238.65,238.53,4.1923]
[1737192643589,20.20139199,238.54,238.52,0.03]
[1737192644596,23.776884,238.53,238.52,0.03]
[1737192645090,20.20139199,238.53,238.52,0.03]
[1737192647797,4.1912,238.6,238.52,0.03]
[1737192647798,20.20139199,238.55,238.52,0.03]
[1737192647996,20.20139199,238.57,238.52,0.03]
[1737192649100,20.20139199,238.59,238.53,20.0]
[1737192649395,20.20139199,238.63,238.54,20.20139199]
[1737192649582,20.20139199,238.63,238.56,20.20139199]
[1737192649974,20.20139199,238.63,238.57,4.1916]
[1737192651090,20.20139199,238.63,238.59,20.0]
[1737192652097,20.20139199,238.63,238.57,4.1916]
[1737192652701,2.1514,238.74,238.59,20.0]
[1737192652901,7.8259,238.76,238.65,40.20139199]
[1737192653084,20.20139199,238.77,238.67,20.20139199]
[1737192654012,20.20139199,238.73,238.65,40.20139199]
[1737192654782,20.20139199,238.73,238.66,4.19]
[1737192655182,20.20139199,238.8,238.66,14.6651]
[1737192655183,20.20139199,238.71,238.66,14.6651]
[1737192657207,24.38909199,238.8,238.66,14.6651]
[1737192657208,20.20139199,238.73,238.66,14.6651]
[1737192657791,20.20139199,238.71,238.66,14.6651]
[1737192659802,7.8259,238.83,238.66,14.6651]
[1737192659803,20.20139199,238.76,238.69,40.20139199]
[1737192659998,20.20139199,238.76,238.7,20.0]
[1737192660203,20.20139199,238.74,238.7,20.0]
[1737192660707,20.20139199,238.72,238.66,14.6651]
[1737192661384,20.20139199,238.74,238.66,34.86649199]
[1737192661588,20.20139199,238.74,238.69,20.0]
[1737192662087,20.20139199,238.74,238.7,4.1893]
[1737192662412,20.20139199,238.72,238.7,4.1893]
[1737192662788,20.20139199,238.74,238.7,4.1893]
[1737192663101,20.20139199,238.76,238.7,4.1893]
[1737192663487,20.20139199,238.78,238.7,34.86399199]
[1737192663806,20.20139199,238.74,238.7,4.1893]
[1737192664107,20.20139199,238.76,238.67,20.20139199]
[1737192664308,20.20139199,238.81,238.71,20.20139199]
[1737192664496,23.776884,238.8,238.71,20.20139199]
[1737192664697,20.20139199,238.75,238.67,28.84499199]
[1737192664908,20.20139199,238.73,238.66,14.6651]
[1737192665689,20.20139199,238.8,238.66,4.19]
[1737192665690,20.20139199,238.71,238.66,4.19]
[1737192665884,20.20139199,238.69,238.62,10.4768]
[1737192666202,20.20139199,238.69,238.62,14.6675]
[1737192666394,20.20139199,238.71,238.63,20.20139199]
[1737192667014,20.20139199,238.71,238.64,4.1904]
[1737192667985,20.20139199,238.65,238.57,20.20139199]
[1737192669095,20.20139199,238.65,238.58,4.1914]
[1737192670092,20.20139199,238.65,238.6,20.0]
[1737192671309,20.20139199,238.65,238.6,24.191]
[1737192671808,20.20139199,238.67,238.6,24.191]
[1737192672016,20.20139199,238.71,238.66,20.0]
[1737192672313,20.20139199,238.69,238.6,4.191]
[1737192672506,20.20139199,238.67,238.6,4.191]
[1737192673115,20.20139199,238.67,238.62,20.0]
[1737192673285,32.25155981,238.98,238.64,2.0356]
[1737192673489,12.95145981,238.98,238.82,23.776884]
[1737192673692,12.95145981,238.98,238.92,20.0]
[1737192673887,12.95145981,238.98,238.93,15.61302597]
[1737192674090,0.063,238.98,238.83,11.2266]
[1737192674493,0.063,238.98,238.86,20.0]
[1737192674710,4.2475,238.98,238.86,20.0]
[1737192674897,4.2475,238.98,238.83,4.9]
[1737192675104,20.20139199,238.94,238.89,20.0]
[1737192675793,23.776884,238.93,238.84,20.20139199]
[1737192676503,20.26439199,238.98,238.89,20.20139199]
[1737192676712,0.063,238.98,238.91,20.20139199]
[1737192677296,20.26439199,238.98,238.89,20.20139199]
[1737192678837,23.776884,238.95,238.87,20.20139199]
[1737192679507,23.776884,238.95,238.89,20.20139199]
[1737192680016,20.26439199,238.98,238.89,20.20139199]
[1737192680212,23.776884,238.97,238.89,20.20139199]
[1737192680414,20.26439199,238.98,238.83,4.9]
[1737192680415,23.776884,238.95,238.9,20.0]
[1737192680804,20.26439199,238.98,238.92,20.0]
[1737192682017,20.26439199,238.98,238.89,20.20139199]
[1737192682220,23.776884,238.97,238.89,20.20139199]
[1737192682520,0.063,238.98,238.92,20.0]
[1737192682702,0.063,238.98,238.83,4.9]
[1737192682703,0.063,238.98,238.93,20.20139199]
[1737192682908,0.063,238.98,238.89,20.20139199]
[1737192683230,0.063,238.98,238.92,20.0]
[1737192683517,23.839884,238.98,238.92,20.0]
[1737192684122,0.063,238.98,238.92,20.0]
[1737192684423,23.839884,238.98,238.92,20.0]
[1737192685703,23.776884,238.96,238.92,20.0]
[1737192686191,20.20139199,238.95,238.9,0.03]
[1737192686805,23.776884,238.94,238.9,0.03]
[1737192687010,20.20139199,238.95,238.9,0.03]
[1737192687628,23.776884,238.94,238.9,0.03]
[1737192688096,23.776884,238.92,238.9,0.03]
[1737192688728,43.97827599,238.91,238.9,0.03]
[1737192689603,48.16387599,238.91,238.9,0.03]
[1737192691718,48.16387599,238.91,238.55,12.52764253]
[1737192691719,23.776884,238.83,238.63,91.2804]
[1737192691918,20.20139199,238.78,238.69,20.20139199]
[1737192692228,2.0298,238.87,238.64,0.6284567]
[1737192692523,2.0298,238.87,238.66,20.0]
[1737192692710,2.0298,238.94,238.74,20.0]
[1737192692909,6.215,238.94,238.75,4.9]
[1737192693100,23.776884,238.93,238.75,4.9]
[1737192693720,23.776884,238.8,238.73,20.20139199]
[1737192694429,20.20139199,238.79,238.71,20.20139199]
[1737192695023,23.776884,238.78,238.71,20.20139199]
[1737192695999,20.20139199,238.77,238.68,20.20139199]
[1737192696204,23.776884,238.76,238.71,20.0]
[1737192697229,23.776884,238.77,238.71,20.0]
[1737192697412,23.776884,238.73,238.64,20.20139199]
[1737192697731,20.20139199,238.76,238.66,20.20139199]
[1737192698037,20.20139199,238.82,238.75,20.0]
[1737192698530,23.776884,238.77,238.69,20.20139199]
[1737192698834,20.20139199,238.88,238.79,20.0]
[1737192699043,20.20139199,238.94,238.85,20.20139199]
[1737192699328,0.063,238.9,238.88,20.0]
[1737192699517,43.97827599,238.89,238.8,20.20139199]
[1737192699732,23.776884,238.88,238.8,20.20139199]
[1737192700234,20.20139199,238.89,238.8,20.20139199]
[1737192700725,23.776884,238.86,238.78,20.20139199]
[1737192701433,23.776884,238.86,238.81,20.0]
[1737192701630,20.20139199,238.89,238.83,20.0]
[1737192702637,23.776884,238.86,238.78,20.20139199]
[1737192702830,23.776884,238.84,238.81,20.0]
[1737192703138,23.776884,238.82,238.74,20.20139199]
[1737192703809,20.20139199,238.87,238.78,20.20139199]
[1737192704005,20.20139199,238.87,238.81,20.0]
[1737192704227,20.20139199,238.87,238.78,20.20139199]
[1737192705630,20.20139199,238.87,238.81,20.0]
[1737192706315,20.20139199,238.87,238.83,20.0]
[1737192706526,20.20139199,238.89,238.83,20.0]
[1737192706831,20.20139199,238.85,238.76,20.20139199]
[1737192707437,20.20139199,238.85,238.79,20.0]
[1737192707637,23.776884,238.84,238.79,20.0]
[1737192707933,20.20139199,238.85,238.79,20.0]
[1737192709733,20.20139199,238.8,238.71,20.20139199]
[1737192709923,20.20139199,238.76,238.67,20.20139199]
[1737192710123,20.20139199,238.76,238.7,20.0]
[1737192710337,23.776884,238.71,238.58,8.12025679]
[1737192710518,20.20139199,238.69,238.61,20.20139199]
[1737192710719,20.20139199,238.71,238.63,20.23139199]
[1737192711238,43.97827599,238.71,238.66,20.0]
[1737192711538,23.776884,238.7,238.63,20.23139199]
[1737192712132,20.20139199,238.66,238.63,0.03]
[1737192712433,43.97827599,238.68,238.63,0.03]
[1737192712814,20.20139199,238.7,238.64,20.0]
[1737192713021,20.20139199,238.72,238.63,20.23139199]
[1737192713329,20.20139199,238.68,238.64,20.0]
[1737192713946,20.20139199,238.68,238.63,0.03]
[1737192714236,20.20139199,238.66,238.63,0.03]
[1737192715244,48.16867599,238.64,238.63,0.03]
[1737192716533,23.776884,238.63,238.58,0.03]
[1737192716833,20.20139199,238.62,238.58,0.03]
[1737192717636,23.776884,238.61,238.58,0.03]
[1737192718023,23.776884,238.59,238.58,0.03]
[1737192719837,27.968084,238.59,238.58,0.03]
[1737192720017,27.968084,238.59,238.58,0.0001]
[1737192720331,24.39179199,238.64,238.58,0.0001]
[1737192720745,20.20139199,238.7,238.63,20.20139199]
[1737192720918,8.809,238.73,238.58,0.0001]
[1737192720919,20.20139199,238.66,238.58,0.0001]
[1737192721122,20.20139199,238.64,238.58,0.0001]
[1737192721326,23.776884,238.63,238.58,0.0001]
[1737192722349,20.20139199,238.6,238.58,0.0001]
[1737192722724,23.776884,238.59,238.58,0.0001]
[1737192723241,27.968084,238.59,238.58,0.0001]
[1737192724331,36.777084,238.59,238.58,0.0001]
[1737192724745,23.776884,238.55,238.52,0.03]
[1737192724950,23.776884,238.52,238.48,0.03]
[1737192725128,43.97827599,238.49,238.48,0.03]
[1737192725442,48.17127599,238.49,238.48,0.03]
[1737192726923,48.17127599,238.49,238.44,0.03]
[1737192726924,23.776884,238.48,238.47,0.0001]
[1737192727130,34.655684,238.48,238.47,0.0001]
[1737192727451,34.655684,238.48,238.44,0.0001]
[1737192727625,43.97827599,238.45,238.44,0.0001]
[1737192727821,23.776884,238.44,238.39,0.0001]
[1737192728128,23.776884,238.39,238.24,20.20139199]
[1737192728333,20.20139199,238.29,238.21,20.20139199]
[1737192728539,20.20139199,238.29,238.24,0.03]
[1737192728745,23.776884,238.28,238.24,0.03]
[1737192728930,20.20139199,238.27,238.24,0.03]
[1737192729130,23.776884,238.26,238.24,0.03]
[1737192729352,43.97827599,238.25,238.24,0.03]
[1737192729644,20.20139199,238.27,238.24,0.03]
[1737192729941,20.20139199,238.25,238.24,0.03]
[1737192730337,20.20139199,238.27,238.24,0.03]
[1737192730524,23.776884,238.26,238.24,0.03]
[1737192730847,4.1972,238.25,238.24,0.03]
[1737192731848,24.39729199,238.33,238.24,0.03]
[1737192732048,24.39729199,238.33,238.25,20.20139199]
[1737192732217,24.39729199,238.33,238.24,0.03]
[1737192732425,20.20139199,238.31,238.26,20.0]
[1737192732724,32.57,238.23,238.04,10.0]
[1737192732933,20.20139199,238.08,238.04,10.0]
[1737192733143,20.20139199,238.1,238.04,10.0]
[1737192733648,23.776884,238.07,238.04,10.0]
[1737192733949,23.776884,238.05,238.04,10.0]
[1737192734243,23.733405,238.05,238.04,10.0]
[1737192734822,23.733405,238.05,238.04,10.03]
[1737192734823,27.934105,238.05,238.04,10.03]
[1737192736730,38.436005,238.05,238.0,1.0]
[1737192736929,43.97827599,238.01,238.0,1.0]
[1737192738154,20.20139199,238.01,238.0,1.0]
[1737192738742,48.17977599,238.01,238.0,1.0]
[1737192739759,48.17977599,238.01,238.0,0.0001]
[1737192739932,23.776884,238.0,237.82,20.20139199]
[1737192740265,20.20139199,237.89,237.82,20.20139199]
[1737192740461,20.20139199,237.91,237.82,20.20139199]
[1737192740635,20.20139199,237.95,237.86,20.20139199]
[1737192740834,41.19239199,238.2,237.81,20.20139199]
[1737192740835,20.20139199,237.89,237.81,20.20139199]
[1737192741037,20.20139199,237.89,237.79,4.2053]
[1737192741038,20.20139199,237.88,237.79,3.2053]
[1737192741253,20.20139199,237.88,237.8,20.20139199]
[1737192741845,20.20139199,237.88,237.79,3.2053]
[1737192742156,20.20139199,237.86,237.79,23.40669199]
[1737192742324,20.20139199,237.86,237.78,4.2055]
[1737192742527,20.20139199,237.82,237.76,0.03]
[1737192742753,8.9315,237.93,237.76,0.03]
[1737192742929,8.9315,237.93,237.76,20.23139199]
[1737192742930,20.20139199,237.85,237.76,20.23139199]
[1737192743134,20.20139199,237.83,237.76,24.43719199]
[1737192743347,20.20139199,237.83,237.76,0.03]
[1737192743558,20.20139199,237.85,237.76,20.23139199]
[1737192743740,20.20139199,237.81,237.76,0.03]
[1737192744056,20.20139199,237.83,237.76,0.03]
[1737192744455,20.20139199,237.81,237.76,0.03]
[1737192744948,20.20139199,237.79,237.76,0.03]
[1737192745343,20.20139199,237.77,237.76,0.03]
[1737192745846,20.20139199,237.84,237.76,0.03]
[1737192745847,20.20139199,237.83,237.79,20.0]
[1737192746144,20.20139199,237.81,237.76,4.2358]
[1737192746539,20.20139199,237.85,237.79,20.0]
[1737192746963,20.20139199,237.85,237.76,24.43719199]
[1737192746964,20.20139199,237.95,237.84,20.20139199]
[1737192747141,8.6625,238.01,237.92,20.0]
[1737192747344,20.20139199,238.0,237.91,20.20139199]
[1737192747555,20.20139199,237.94,237.85,20.20139199]
[1737192747774,25.434,238.01,237.76,14.7506]
[1737192747938,35.9377,238.01,237.76,14.7506]
[1737192748143,12.864,238.01,237.76,0.03]
[1737192748343,12.864,238.01,237.76,1.66559242]
[1737192748579,12.864,238.01,237.76,0.03]
[1737192748871,20.20139199,237.91,237.81,20.20139199]
[1737192749168,20.20139199,237.9,237.81,20.20139199]
[1737192749666,23.776884,237.89,237.81,20.20139199]
[1737192750050,23.3677,238.01,237.81,20.20139199]
[1737192750371,20.20139199,237.86,237.79,4.2053]
[1737192750541,20.20139199,237.82,237.76,0.03]
[1737192750745,20.20139199,237.78,237.76,0.03]
[1737192750949,23.776884,237.77,237.76,0.03]
[1737192751154,36.346884,237.77,237.61,20.20139199]
[1737192751356,23.776884,237.69,237.57,1.67990065]
[1737192751654,23.776884,237.69,237.53,4.2099]
[1737192751655,20.20139199,237.65,237.53,14.7348]
[1737192751842,23.776884,237.62,237.55,20.20139199]
[1737192752043,23.776884,237.6,237.53,24.41129199]
[1737192752256,20.20139199,237.63,237.53,20.20139199]
[1737192752454,20.20139199,237.61,237.53,20.20139199]
[1737192752657,20.20139199,237.65,237.55,20.20139199]
[1737192752966,23.776884,237.6,237.53,20.20139199]
[1737192753462,23.776884,237.59,237.52,0.03]
[1737192753671,33.15680743,237.64,237.56,33.15680743]
[1737192753967,33.15680743,237.66,237.56,33.15680743]
[1737192754268,23.776884,237.61,237.54,33.15680743]
[1737192754564,33.15680743,237.66,237.58,33.15680743]
[1737192754763,23.776884,237.63,237.56,33.15680743]
[1737192755059,23.776884,237.63,237.54,37.36650743]
[1737192755259,23.776884,237.59,237.52,37.39680743]
[1737192755463,33.15680743,237.56,237.52,0.03]
[1737192755647,33.15680743,237.67,237.55,33.15680743]
[1737192755846,33.15680743,237.67,237.52,0.03]
[1737192755847,33.15680743,237.69,237.6,33.15680743]
[1737192756043,33.15680743,237.69,237.52,4.2399]
[1737192756044,2.1384,237.75,237.54,4.92]
[1737192756260,8.6625,237.8,237.55,4.84078678]
[1737192756763,8.6625,237.8,237.58,20.0]
[1737192756964,2.1384,237.83,237.59,0.63110607]
[1737192757263,33.15680743,237.79,237.6,13.1691]
[1737192757457,33.15680743,237.79,237.69,33.15680743]
[1737192757655,33.15680743,237.71,237.55,35.7819]
[1737192757856,33.15680743,237.71,237.61,33.15680743]
[1737192758056,33.15680743,237.73,237.65,33.15680743]
[1737192758457,33.15680743,237.73,237.66,4.2076]
[1737192758764,33.15680743,237.75,237.66,4.2076]
[1737192758961,33.15680743,237.77,237.67,33.15680743]
[1737192759345,33.15680743,237.73,237.65,33.15680743]
[1737192759774,23.776884,237.72,237.65,33.15680743]
[1737192759953,0.063,237.76,237.67,33.15680743]
[1737192760161,0.063,237.76,237.73,33.15680743]
[1737192760364,0.063,237.76,237.75,37.36280743]
[1737192760666,33.21980743,237.76,237.67,33.15680743]
[1737192760869,23.776884,237.71,237.63,4.2082]
[1737192761071,23.776884,237.75,237.63,4.2082]
[1737192761371,33.15680743,237.72,237.64,33.15680743]
[1737192761576,33.15680743,237.74,237.66,33.15680743]
[1737192761753,23.776884,237.74,237.66,33.15680743]
[1737192762267,33.15680743,237.72,237.54,2.33061322]
[1737192762568,33.15680743,237.74,237.64,33.15680743]
[1737192762871,0.063,237.76,237.55,4.2096]
[1737192762872,33.15680743,237.66,237.55,4.2096]
[1737192763091,33.15680743,237.64,237.56,33.15680743]
[1737192763260,33.15680743,237.66,237.56,33.15680743]
[1737192763771,33.15680743,237.66,237.55,4.2096]
[1737192763772,33.15680743,237.64,237.55,4.2096]
[1737192763976,33.15680743,237.6,237.53,4.2099]
[1737192764164,2.1113,237.71,237.52,0.03]
[1737192764165,33.15680743,237.56,237.52,0.03]
[1737192764550,23.776884,237.55,237.52,0.03]
[1737192766574,33.15680743,237.56,237.52,0.03]
[1737192766754,10.518,237.69,237.52,0.03]
[1737192766755,33.15680743,237.62,237.52,33.18680743]
[1737192766963,33.15680743,237.62,237.52,53.18680743]
[1737192767178,4.207,237.7,237.52,0.03]
[1737192767476,33.15680743,237.61,237.52,33.18680743]
[1737192767660,23.776884,237.6,237.52,33.18680743]
[1737192768376,33.15680743,237.61,237.52,37.39680743]
[1737192768587,33.15680743,237.63,237.54,33.15680743]
[1737192768783,23.776884,237.58,237.52,0.03]
[1737192769074,23.776884,237.56,237.52,0.03]
[1737192769660,23.776884,237.54,237.52,0.03]
[1737192770179,33.15680743,237.57,237.52,0.03]
[1737192770563,33.15680743,237.59,237.52,0.03]
[1737192770960,23.776884,237.58,237.52,0.03]
[1737192771162,23.776884,237.56,237.52,0.03]
[1737192771470,33.15680743,237.57,237.52,0.03]
[1737192771670,33.15680743,237.55,237.52,0.03]
[1737192771979,33.15680743,237.53,237.52,0.03]
[1737192772565,56.93369143,237.53,237.52,0.03]
[1737192772764,33.15680743,237.53,237.52,0.03]
[1737192773065,33.15680743,237.55,237.52,0.03]
[1737192773779,33.15680743,237.53,237.52,0.03]
[1737192773974,56.93369143,237.53,237.52,0.03]
[1737192774466,23.776884,237.51,237.35,33.15680743]
[1737192774787,33.15680743,237.5,237.41,33.15680743]
[1737192775082,33.15680743,237.48,237.39,33.15680743]
[1737192775287,33.15680743,237.46,237.37,33.15680743]
[1737192775597,20.4284402,237.45,237.36,24.6414402]
[1737192775882,20.4284402,237.43,237.34,20.4284402]
[1737192776084,20.4284402,237.45,237.36,20.4284402]
[1737192776274,23.776884,237.44,237.36,20.4284402]
[1737192776469,23.776884,237.42,237.34,20.4284402]
[1737192776887,23.776884,237.42,237.35,4.2131]
[1737192777066,20.4284402,237.39,237.29,24.6426402]
[1737192777389,20.4284402,237.41,237.31,20.4284402]
[1737192777684,20.4284402,237.41,237.33,20.4284402]
[1737192777905,20.4284402,237.47,237.37,20.4284402]
[1737192778389,20.4284402,237.51,237.41,20.4284402]
[1737192778575,20.4284402,237.53,237.45,20.4284402]
[1737192778774,20.4284402,237.55,237.37,0.63169048]
[1737192778980,20.4284402,237.51,237.42,20.4284402]
[1737192779293,23.776884,237.48,237.4,20.4284402]
[1737192779768,20.4284402,237.49,237.4,20.4284402]
[1737192780387,20.4284402,237.47,237.38,24.6410402]
[1737192780567,20.4284402,237.49,237.4,20.4284402]
[1737192780762,20.4284402,237.51,237.42,20.4284402]
[1737192780968,20.4284402,237.51,237.43,4.2117]
[1737192781403,20.4284402,237.47,237.39,4.2124]
[1737192781693,20.4284402,237.41,237.35,4.2131]
[1737192781894,20.4284402,237.41,237.31,20.4284402]
[1737192782080,20.4284402,237.39,237.33,4.2134]
[1737192782278,20.4284402,237.41,237.33,4.2134]
[1737192782464,20.4284402,237.41,237.33,24.6418402]
[1737192782665,20.4284402,237.41,237.33,4.2134]
[1737192782998,20.4284402,237.45,237.35,20.4284402]
[1737192783699,20.4284402,237.49,237.41,20.4284402]
[1737192783890,20.4284402,237.51,237.43,20.4284402]
[1737192784075,20.4284402,237.49,237.41,20.4284402]
[1737192784576,20.4284402,237.49,237.39,20.4284402]
[1737192785096,20.4284402,237.43,237.36,4.213]
[1737192785289,20.4284402,237.39,237.32,4.2137]
[1737192785478,23.776884,237.38,237.32,4.2137]
[1737192785794,20.4284402,237.37,237.31,4.2438]
[1737192786097,20.4284402,237.39,237.31,4.2438]
[1737192786484,35.1665402,237.48,237.31,4.2438]
[1737192786485,23.776884,237.35,237.31,0.03]
[1737192787383,4.2146,237.34,237.31,0.03]
[1737192788102,44.2053242,237.33,237.31,0.03]
[1737192788896,4.2146,237.34,237.31,0.03]
[1737192789084,20.4284402,237.32,237.31,0.03]
[1737192790083,4.2146,237.34,237.31,0.03]
[1737192791078,20.4284402,237.4,237.32,20.4284402]
[1737192791276,20.4284402,237.38,237.31,0.03]
[1737192791974,20.4284402,237.36,237.31,0.03]
[1737192792602,20.4284402,237.34,237.31,0.03]
[1737192792773,15.1367,237.44,237.31,0.03]
[1737192792774,44.2053242,237.32,237.31,0.03]
[1737192796100,23.776884,237.29,237.28,0.03]
[1737192796296,44.2053242,237.29,237.28,0.03]
[1737192796606,44.2053242,237.29,237.1,4.2176]
[1737192796794,16.8609,237.31,237.1,4.2176]
[1737192796795,20.4284402,237.26,237.19,20.4284402]
[1737192797004,20.4284402,237.28,237.19,20.4284402]
[1737192797189,20.4284402,237.28,237.13,0.63230222]
[1737192797190,20.4284402,237.28,237.21,20.4284402]
[1737192797518,20.4284402,237.28,237.22,4.2154]
[1737192797813,23.776884,237.23,237.08,8.8479]
[1737192798111,23.776884,237.23,237.06,20.4284402]
[1737192798112,20.4284402,237.15,237.06,20.4284402]
[1737192798417,20.4284402,237.19,237.1,20.4284402]
[1737192798596,20.4284402,237.21,237.12,20.4284402]
[1737192798905,20.4284402,237.2,237.11,20.4284402]
[1737192799115,7.28069698,237.29,237.15,20.4284402]
[1737192799116,3.06639698,237.29,237.15,20.4284402]
[1737192799282,20.4284402,237.24,237.15,20.4284402]
[1737192799485,20.4284402,237.24,237.16,4.2165]
[1737192800383,20.4284402,237.22,237.16,4.2165]
[1737192800596,20.4284402,237.22,237.13,20.4284402]
[1737192800793,20.4284402,237.2,237.14,14.7591]
[1737192800997,20.4284402,237.22,237.14,35.1875402]
[1737192801184,20.4284402,237.24,237.16,20.4284402]
[1737192801513,20.4284402,237.22,237.14,35.1875402]
[1737192802021,20.4284402,237.22,237.14,14.7591]
[1737192802206,20.4284402,237.17,237.07,20.4284402]
[1737192802514,20.4284402,237.15,237.07,20.4284402]
[1737192802711,20.4284402,237.15,237.08,14.7628]
[1737192803314,20.4284402,237.15,237.08,4.2179]
[1737192803892,20.4284402,237.19,237.09,20.4284402]
[1737192804691,20.4284402,237.21,237.13,20.4284402]
[1737192804892,20.4284402,237.21,237.14,4.2169]
[1737192805103,20.4284402,237.18,237.07,10.545]
[1737192805301,20.4284402,237.22,237.13,20.4284402]
[1737192806309,20.4284402,237.15,237.08,14.7628]
[1737192806507,20.4284402,237.19,237.1,20.4284402]
[1737192806693,20.4284402,237.21,237.1,20.4284402]
[1737192806893,20.4284402,237.21,237.12,20.4284402]
[1737192807502,20.4284402,237.21,237.09,0.03]
[1737192807503,20.4284402,237.19,237.1,20.4284402]
[1737192807701,20.4284402,237.19,237.11,14.761]
[1737192808109,20.4284402,237.17,237.11,14.761]
[1737192808896,20.4284402,237.19,237.11,14.761]
[1737192809090,20.4284402,237.12,237.11,4.2174]
[1737192809307,20.4284402,237.12,237.09,4.2477]
[1737192809518,20.4284402,237.16,237.09,4.2477]
[1737192809899,20.4284402,237.16,237.09,14.7922]
[1737192810499,0.063,237.28,237.12,20.4284402]
[1737192810700,20.4284402,237.22,237.12,20.4284402]
[1737192811202,20.4284402,237.16,237.1,5.04]
[1737192811715,20.4284402,237.18,237.1,5.04]
[1737192811896,20.4284402,237.18,237.11,14.761]
[1737192813315,0.024,237.17,237.11,14.761]
[1737192813514,20.4284402,237.16,237.11,14.761]
[1737192813719,20.4284402,237.12,237.09,0.03]
[1737192813926,20.4284402,237.1,237.09,0.03]
[1737192814821,44.2053242,237.1,237.09,0.03]
[1737192815192,20.4284402,237.1,237.09,0.03]
[1737192816018,23.776884,237.11,237.09,0.03]
[1737192816219,23.4921861,237.1,236.96,4.2201]
[1737192816424,20.4284402,237.05,236.96,4.2201]
[1737192816718,20.4284402,237.05,236.96,14.7704]
[1737192816920,20.4284402,237.05,236.96,35.1988402]
[1737192817109,20.4284402,237.09,237.0,20.4284402]
[1737192817427,20.4284402,237.07,236.98,20.4284402]
[1737192817609,20.4284402,237.09,237.0,20.4284402]
[1737192818202,20.4284402,237.11,237.02,20.4284402]
[1737192818623,20.4284402,237.14,237.06,20.4284402]
[1737192818803,20.4284402,237.12,237.04,20.0]
[1737192819008,20.4284402,237.12,237.04,40.4284402]
[1737192819599,0.024,237.17,237.06,20.4284402]
[1737192819806,0.024,237.17,237.05,14.7647]
[1737192819807,0.024,237.17,237.14,20.4284402]
[1737192820108,0.024,237.17,237.1,20.4284402]
[1737192820300,20.4284402,237.15,237.06,20.4284402]
[1737192820498,20.4284402,237.15,237.05,15.39715144]
[1737192820706,0.024,237.17,237.1,20.4284402]
[1737192821203,0.024,237.17,237.12,20.4284402]
[1737192821423,0.024,237.17,237.14,20.4284402]
[1737192821728,20.4284402,237.23,237.15,14.7585]
[1737192821901,20.4284402,237.27,237.18,40.4284402]
[1737192822109,20.4284402,237.29,237.2,20.4284402]
[1737192822512,28.3363402,237.36,237.26,20.4284402]
[1737192822513,20.4284402,237.35,237.26,20.4284402]
[1737192822714,20.4284402,237.36,237.26,20.1427677]
[1737192823030,20.4284402,237.43,237.3,20.0]
[1737192823330,20.4284402,237.43,237.34,20.4284402]
[1737192823832,9.19999864,237.47,237.42,20.4284402]
[1737192824013,9.864e-05,237.47,237.46,20.4284402]
[1737192824205,20.42853884,237.61,237.49,20.0]
[1737192824536,0.0001,237.52,237.51,20.4284402]
[1737192824715,9.864e-05,237.61,237.51,20.4284402]
[1737192824716,9.864e-05,237.61,237.54,20.0]
[1737192824907,12.88845981,237.72,237.63,20.0]
[1737192825222,20.4284402,237.84,237.56,5.0]
[1737192825428,4.2052,237.8,237.62,20.4284402]
[1737192825603,20.4284402,237.84,237.59,20.0]
[1737192825804,6.44673361,237.85,237.6,137.93114446]
[1737192826125,9.55106529,237.99,237.63,169.87]
[1737192826314,7.9079,237.99,237.65,12.57]
[1737192826511,12.1098,237.99,237.68,157.3]